fUSD/lending_fUSD_20260427
["ID","MTS","AMOUNT","RATE_DAILY","PERIOD"]
[421185223,1777224632362,-1846.15485244,0.00012893,2]
[421185224,1777224632374,-506.276,0.00012893,2]
[421185226,1777224632385,-18579.85914756,0.00012893,2]
[421185227,1777224632395,-250.0,0.00013,2]
[421185228,1777224632404,-152.0,0.00013603,7]
[421185229,1777224632414,-714.05,0.00013698,2]
[421185230,1777224632424,-255.0,0.00014001,2]
[421185231,1777224632434,-300.0,0.00015,2]
[421185232,1777224632445,-2000.0,0.0001514,2]
[421185233,1777224632455,-433.0,0.00015199,2]
[421185234,1777224632465,-1000.0,0.0001607,2]
[421185235,1777224632474,-500.0,0.00016071,2]
[421185236,1777224632485,-200.0,0.00016071,2]
[421185237,1777224632495,-151.0,0.00016071,2]
[421185238,1777224632505,-151.0,0.00016071,2]
[421185239,1777224632514,-500.0,0.00016071,2]
[421185240,1777224632524,-151.0,0.00016071,2]
[421185241,1777224632533,-151.0,0.00016071,2]
[421185242,1777224632543,-500.0,0.00016071,2]
[421185243,1777224632552,-500.0,0.00016071,2]
[421185244,1777224632561,-151.0,0.00016071,2]
[421185245,1777224632570,-387.94217574,0.00016071,2]
[421185246,1777224632581,-151.0,0.00016071,2]
[421185247,1777224632590,-151.0,0.00016071,2]
[421185248,1777224632600,-151.0,0.00016071,2]
[421185249,1777224632610,-151.0,0.00016071,2]
[421185250,1777224632620,-151.0,0.00016071,2]
[421185251,1777224632629,-151.0,0.00016071,2]
[421185252,1777224632639,-151.0,0.00016071,2]
[421185253,1777224632648,-151.0,0.00016071,2]
[421185254,1777224632657,-500.0,0.00016071,2]
[421185255,1777224632666,-278.55420501,0.00016071,2]
[421185256,1777224632677,-500.0,0.00016071,2]
[421185257,1777224632686,-500.0,0.00016071,2]
[421185258,1777224632695,-151.0,0.00016071,2]
[421185259,1777224632705,-500.0,0.00016071,2]
[421185260,1777224632714,-151.0,0.00016071,2]
[421185261,1777224632723,-500.0,0.00016071,2]
[421185262,1777224632733,-500.0,0.00016071,2]
[421185263,1777224632745,-151.0,0.00016071,2]
[421185264,1777224632754,-500.0,0.00016071,2]
[421185265,1777224632763,-151.0,0.00016071,2]
[421185266,1777224632773,-500.0,0.00016071,2]
[421185267,1777224632783,-500.0,0.00016071,2]
[421185268,1777224632792,-500.0,0.00016071,2]
[421185269,1777224632802,-528.80885477,0.00016071,2]
[421185270,1777224632813,-492.23450595,0.00016071,2]
[421185271,1777224632824,-3132.4619188,0.00016081,2]
[421185272,1777224632834,-27830.2251328,0.00016081,2]
[421185273,1777224632844,-52281.468491,0.00016081,2]
[421185274,1777224632854,-418.5637299,0.00016081,2]
[421185275,1777224632863,-152.0,0.00016084,7]
[421185276,1777224632874,-3507.30619485,0.00016255,2]
[421185277,1777224632883,-500.0,0.00016345,2]
[421185278,1777224632892,-4870.4,0.00016438,2]
[421185279,1777224632902,-200.0,0.00016619,2]
[421185280,1777224632911,-286.57119096,0.0001696,2]
[421185281,1777224632920,-160.0,0.0001712,2]
[421185282,1777224632930,-856.18,0.00017181,2]
[421185283,1777224632939,-286.65485468,0.00017285,2]
[421185284,1777224632949,-856.18,0.00017455,2]
[421185285,1777224632958,-1122.65222277,0.00017482,2]
[421185286,1777224632967,-21.11430547,0.000176,2]
[421185287,1777224632980,-3789.88569453,0.000176,2]
[421185288,1777224632990,-350.0,0.00017603,2]
[421185289,1777224632999,-9690.61235883,0.00017604,2]
[421185297,1777224638121,-194.00072509,9.04e-05,2]
[421185298,1777224638131,-57.17222738,0.00012461,2]
[421185299,1777224638176,-136.82849771,0.00012461,2]
[421185300,1777224638185,-285.0,0.00016301,2]
[421185301,1777224638195,-78.17150229,0.00017603,2]
[421185302,1777224638207,-319.56578962,0.00017603,2]
[421185303,1777224638235,-102.26270809,0.00017603,2]
[421185304,1777224638244,-193.17128722,0.00017603,2]
[421185305,1777224638254,-40.2156088,0.00017603,2]
[421185481,1777224640472,-459.7843912,0.00017603,2]
[421185483,1777224640482,-317.11870631,0.00017603,2]
[421185540,1777224641032,-182.88129369,0.00017603,2]
[421185542,1777224641041,-350.11870631,0.00017603,2]
[421185779,1777224643307,-192.59144956,0.00017603,2]
[421185781,1777224643316,-500.0,0.00017603,2]
[421185783,1777224643326,-500.0,0.00017603,2]
[421185785,1777224643335,-371.93565639,0.00017603,2]
[421185787,1777224643345,-500.0,0.00017603,2]
[421185789,1777224643354,-500.0,0.00017603,2]
[421185791,1777224643365,-500.0,0.00017603,2]
[421185793,1777224643374,-500.0,0.00017603,2]
[421185795,1777224643384,-500.0,0.00017603,2]
[421185797,1777224643393,-500.0,0.00017603,2]
[421185799,1777224643403,-500.0,0.00017603,2]
[421185801,1777224643412,-500.0,0.00017603,2]
[421185803,1777224643422,-500.0,0.00017603,2]
[421185805,1777224643433,-500.0,0.00017603,2]
[421185807,1777224643442,-500.0,0.00017603,2]
[421185809,1777224643452,-500.0,0.00017603,2]
[421185811,1777224643461,-500.0,0.00017603,2]
[421185813,1777224643471,-500.0,0.00017603,2]
[421185815,1777224643481,-500.0,0.00017603,2]
[421185817,1777224643490,-500.0,0.00017603,2]
[421185819,1777224643500,-500.0,0.00017603,2]
[421185821,1777224643510,-500.0,0.00017603,2]
[421185823,1777224643520,-500.0,0.00017603,2]
[421185825,1777224643529,-500.0,0.00017603,2]
[421185827,1777224643539,-500.0,0.00017603,2]
[421185829,1777224643548,-500.0,0.00017603,2]
[421185831,1777224643558,-500.0,0.00017603,2]
[421185833,1777224643568,-500.0,0.00017603,2]
[421185835,1777224643577,-500.0,0.00017603,2]
[421185837,1777224643587,-500.0,0.00017603,2]
[421185839,1777224643596,-500.0,0.00017603,2]
[421185841,1777224643606,-500.0,0.00017603,2]
[421185843,1777224643615,-500.0,0.00017603,2]
[421185845,1777224643625,-500.0,0.00017603,2]
[421185848,1777224643645,-500.0,0.00017603,2]
[421185850,1777224643656,-500.0,0.00017603,2]
[421185852,1777224643666,-500.0,0.00017603,2]
[421185854,1777224643676,-500.0,0.00017603,2]
[421185856,1777224643687,-500.0,0.00017603,2]
[421185858,1777224643697,-500.0,0.00017603,2]
[421185860,1777224643707,-500.0,0.00017603,2]
[421185862,1777224643716,-500.0,0.00017603,2]
[421185864,1777224643726,-6351.45476294,0.00017604,2]
[421185866,1777224643736,-391.16,0.00017696,3]
[421185868,1777224643746,-27830.2251328,0.00017706,2]
[421185870,1777224643755,-856.18,0.00017729,2]
[421185872,1777224643765,-200.0,0.00017781,2]
[421185874,1777224643775,-1280.88388878,0.00017781,2]
[421185876,1777224643784,-646.65982734,0.00017781,2]
[421185878,1777224643794,-8570.04823178,0.00017781,2]
[421185880,1777224643804,-297.03631994,0.00017781,2]
[421185882,1777224643814,-578.20924308,0.00017781,2]
[421185884,1777224643824,-187.78006525,0.00017781,2]
[421185886,1777224643834,-743.50770149,0.00017781,2]
[421185888,1777224643843,-174.61919141,0.00017781,2]
[421185890,1777224643853,-187.51611534,0.00017781,2]
[421185892,1777224643863,-279.9045709,0.00017781,2]
[421185894,1777224643873,-187.78006525,0.00017781,2]
[421185896,1777224643883,-700.0,0.00017818,2]
[421185898,1777224643893,-2000.0,0.00017942,2]
[421185900,1777224643903,-350.0,0.00017955,2]
[421185902,1777224643913,-201.63851467,0.00018,2]
[421185904,1777224643922,-856.18,0.00018003,2]
[421185906,1777224643933,-714.05,0.00018016,2]
[421185908,1777224643942,-201.63851467,0.000182,2]
[421185910,1777224643951,-856.18,0.00018277,2]
[421185912,1777224643961,-11084.07,0.0001831,2]
[421185914,1777224643971,-200.0,0.00018315,2]
[421185916,1777224643980,-2000.0,0.0001832,2]
[421185918,1777224643990,-2000.0,0.0001832,2]
[421185920,1777224644000,-2000.0,0.0001832,2]
[421185922,1777224644009,-391.73555,0.0001832,2]
[421185924,1777224644019,-2000.0,0.0001832,2]
[421185926,1777224644028,-391.73555,0.0001832,2]
[421185928,1777224644043,-391.73555,0.0001832,2]
[421185930,1777224644053,-391.73555,0.0001832,2]
[421185932,1777224644063,-391.73555,0.0001832,2]
[421185934,1777224644073,-391.73555,0.0001832,2]
[421185936,1777224644083,-2000.0,0.0001832,2]
[421185938,1777224644092,-200.0,0.00018329,2]
[421185940,1777224644102,-1328.27659266,0.00018329,2]
[421185942,1777224644112,-334.92770276,0.00018329,2]
[421185944,1777224644122,-771.01748645,0.00018329,2]
[421185946,1777224644132,-181.08010149,0.00018329,2]
[421185949,1777224644142,-290.26104003,0.00018329,2]
[421185951,1777224644151,-194.72792766,0.00018329,2]
[421185953,1777224644161,-200.0,0.00018352,2]
[421185955,1777224644171,-200.0,0.00018353,2]
[421185957,1777224644180,-200.0,0.00018353,2]
[421185959,1777224644190,-201.63851467,0.000184,2]
[421185961,1777224644200,-2228.0,0.000184,2]
[421185963,1777224644209,-162.25551732,0.00018421,2]
[421185965,1777224644219,-250.0,0.00018438,2]
[421185967,1777224644229,-714.05,0.00018481,2]
[421185969,1777224644239,-2500.0,0.00018481,2]
[421185971,1777224644249,-500.0,0.00018488,2]
[421185973,1777224644259,-160.0,0.00018488,2]
[421185975,1777224644268,-500.0,0.00018489,2]
[421185977,1777224644278,-500.0,0.00018489,2]
[421185979,1777224644288,-500.0,0.00018489,2]
[421185981,1777224644298,-500.0,0.00018489,2]
[421185984,1777224644308,-1061.77,0.00018489,2]
[421185986,1777224644317,-611.58,0.00018489,2]
[421185988,1777224644328,-6387.1752459,0.00018495,2]
[421185990,1777224644339,-500.0,0.000185,2]
[421185992,1777224644350,-500.0,0.000185,2]
[421185994,1777224644361,-500.0,0.000185,2]
[421185996,1777224644372,-500.0,0.000185,2]
[421185998,1777224644385,-500.0,0.000185,2]
[421186000,1777224644394,-500.0,0.000185,2]
[421186002,1777224644404,-500.0,0.000185,2]
[421186004,1777224644414,-500.0,0.000185,2]
[421186006,1777224644424,-1061.77,0.000185,2]
[421186009,1777224644438,-1061.77,0.000185,2]
[421186011,1777224644448,-611.58,0.000185,2]
[421186013,1777224644457,-611.58,0.000185,2]
[421186015,1777224644467,-714.05,0.000185,2]
[421186017,1777224644477,-714.05,0.000185,2]
[421186019,1777224644487,-170.61705576,0.000185,2]
[421186021,1777224644496,-224.55624367,0.000185,2]
[421186023,1777224644506,-275.54801452,0.000185,2]
[421186025,1777224644516,-500.0,0.000185,2]
[421186027,1777224644526,-500.0,0.000185,2]
[421186029,1777224644536,-232.66663147,0.000185,2]
[421186031,1777224644547,-500.0,0.000185,2]
[421186033,1777224644558,-500.0,0.000185,2]
[421186036,1777224644568,-161.61623569,0.000185,2]
[421186038,1777224644578,-226.5,0.00018501,2]
[421186040,1777224644587,-276.35897842,0.00018501,2]
[421186042,1777224644597,-302.0,0.00018501,2]
[421186044,1777224644607,-1000.0,0.00018501,2]
[421186046,1777224644617,-200.0,0.00018501,2]
[421186048,1777224644628,-1000.0,0.00018501,2]
[421186050,1777224644638,-1000.0,0.00018501,2]
[421186052,1777224644647,-744.97471172,0.00018501,2]
[421186054,1777224644657,-161.0,0.0001851,2]
[421186056,1777224644667,-4870.4,0.00018524,2]
[421186058,1777224644676,-856.18,0.00018551,2]
[421186060,1777224644686,-350.0,0.00018685,2]
[421186062,1777224644696,-200.0,0.00018686,2]
[421186064,1777224644705,-500.0,0.00018749,2]
[421186066,1777224644715,-500.0,0.00018758,2]
[421186068,1777224644724,-885.85356748,0.00018777,2]
[421186070,1777224644734,-856.18,0.00018825,2]
[421186072,1777224644743,-200.0,0.00018873,2]
[421186074,1777224644753,-200.0,0.00018877,2]
[421186076,1777224644764,-1377.42282659,0.00018877,2]
[421186078,1777224644774,-799.54513345,0.00018877,2]
[421186080,1777224644784,-187.78006525,0.00018877,2]
[421186082,1777224644794,-301.00069851,0.00018877,2]
[421186084,1777224644804,-201.93286099,0.00018877,2]
[421186086,1777224644814,-2500.0,0.00018938,2]
[421186088,1777224644825,-309.0,0.00018945,5]
[421186091,1777224644839,-211.0,0.00019,2]
[421186093,1777224644849,-213.0,0.00019,2]
[421186095,1777224644859,-880.0,0.00019,2]
[421186097,1777224644869,-307.0,0.00019,2]
[421186099,1777224644879,-286.0,0.00019,2]
[421186101,1777224644889,-370.0,0.00019,2]
[421186103,1777224644899,-347.0,0.00019,2]
[421186105,1777224644909,-223.0,0.00019,2]
[421186107,1777224644919,-408.0,0.00019,2]
[421186109,1777224644928,-580.0,0.00019,2]
[421186111,1777224644938,-362.79905612,0.0001901,7]
[421186113,1777224644948,-1063.40729113,0.00019014,5]
[421186115,1777224644958,-1063.40729113,0.00019014,5]
[421186117,1777224644968,-500.0,0.00019014,2]
[421186119,1777224644977,-500.0,0.00019014,3]
[421186122,1777224644987,-500.0,0.00019014,4]
[421186124,1777224644997,-500.0,0.00019014,5]
[421186126,1777224645007,-500.0,0.00019014,6]
[421186128,1777224645016,-478.63292169,0.00019055,2]
[421186130,1777224645025,-200.0,0.00019062,2]
[421186132,1777224645035,-6580.354,0.00019078,2]
[421186134,1777224645044,-856.18,0.00019099,2]
[421186136,1777224645054,-350.0,0.00019154,2]
[421186138,1777224645066,-714.05,0.00019177,2]
[421186140,1777224645076,-150.17524727,0.00019178,2]
[421186142,1777224645085,-250.56820136,0.00019178,2]
[421186144,1777224645095,-250.0,0.00019178,2]
[421186147,1777224645106,-250.0,0.00019178,2]
[421186149,1777224645116,-250.0,0.00019178,2]
[421186151,1777224645125,-258.54024836,0.00019178,2]
[421186153,1777224645135,-500.0,0.00019214,2]
[421186155,1777224645144,-500.0,0.00019214,3]
[421186157,1777224645154,-500.0,0.00019214,4]
[421186158,1777224645164,-500.0,0.00019214,5]
[421186160,1777224645174,-500.0,0.00019214,6]
[421186162,1777224645184,-5913.28,0.00019223,2]
[421186164,1777224645195,-471.407,0.00019223,2]
[421186166,1777224645205,-200.0,0.00019252,2]
[421186168,1777224645215,-812.24786116,0.00019297,2]
[421186170,1777224645225,-500.0,0.00019299,2]
[421186172,1777224645235,-500.0,0.00019299,2]
[421186174,1777224645245,-1000.0,0.00019306,2]
[421186176,1777224645254,-27830.2251328,0.0001933,2]
[421186178,1777224645264,-151.0,0.0001937,2]
[421186180,1777224645274,-500.0,0.00019371,2]
[421186182,1777224645284,-500.0,0.00019372,2]
[421186185,1777224645298,-525.06490036,0.00019372,2]
[421186187,1777224645308,-500.0,0.00019372,2]
[421186189,1777224645317,-500.0,0.00019372,2]
[421186191,1777224645327,-1061.77,0.00019372,2]
[421186193,1777224645336,-611.58,0.00019372,2]
[421186195,1777224645346,-856.18,0.00019373,2]
[421186197,1777224645356,-500.0,0.00019398,2]
[421186199,1777224645366,-500.0,0.00019398,2]
[421186200,1777224645376,-559.49,0.00019398,2]
[421186202,1777224645386,-500.0,0.00019398,2]
[421186204,1777224645397,-522.18,0.00019398,2]
[421186206,1777224645406,-512.11,0.00019398,2]
[421186208,1777224645416,-500.0,0.00019398,2]
[421186210,1777224645426,-500.0,0.00019398,2]
[421186212,1777224645437,-191.59789049,0.00019398,2]
[421186214,1777224645447,-500.0,0.00019398,2]
[421186217,1777224645457,-1540.92,0.00019398,2]
[421186219,1777224645468,-810.6,0.00019398,2]
[421186220,1777224645478,-500.0,0.00019398,2]
[421186222,1777224645488,-500.0,0.00019398,2]
[421186225,1777224645500,-676.93,0.00019398,2]
[421186227,1777224645510,-500.0,0.00019398,2]
[421186229,1777224645520,-500.0,0.00019398,2]
[421186231,1777224645530,-884.06,0.00019398,2]
[421186233,1777224645540,-296.0,0.00019399,5]
[421186235,1777224645551,-200.0,0.00019425,2]
[421186237,1777224645561,-1428.38747117,0.00019425,2]
[421186239,1777224645572,-829.12830338,0.00019425,2]
[421186241,1777224645582,-194.72792766,0.00019425,2]
[421186243,1777224645593,-446.39289526,0.00019425,2]
[421186245,1777224645604,-303.90665607,0.00019425,2]
[421186247,1777224645614,-300.0,0.000195,2]
[421186249,1777224645625,-16042.06712175,0.00019526,2]
[421186251,1777224645635,-260.11,0.00019568,2]
[421186252,1777224645645,-4243.72842239,0.00019591,2]
[421186307,1777224646179,-194.00072509,0.00015981,2]
[421186309,1777224646189,-613.0,0.00019,2]
[421186311,1777224646199,-226.5,0.00019371,2]
[421186313,1777224646208,-721.49927491,0.00019591,2]
[421187204,1777224681714,197.246524,0.00022011,120]
[421187205,1777224700525,999.0,0.0003287,120]
[421187206,1777224701464,1005.0,0.0003287,120]
[421187208,1777224767720,241.0,0.0003287,120]
[421187209,1777224770182,328.16,0.00032192,120]
[421187210,1777225002364,500.0,0.0003287,120]
[421187212,1777225266482,314.0,0.00032876,120]
[421187213,1777225266520,619.0,0.00032876,120]
[421187217,1777225832243,-265.84703492,8.2e-05,2]
[421187219,1777225832674,-1.60296508,8.2e-05,2]
[421187221,1777225832684,-250.0,8.205e-05,2]
[421187223,1777225832694,-280.0,8.219e-05,2]
[421187225,1777225832703,-300.0,8.884e-05,2]
[421187227,1777225832712,-300.0,8.884e-05,2]
[421187229,1777225832722,-300.0,8.884e-05,2]
[421187231,1777225832731,-300.0,8.884e-05,2]
[421187233,1777225832740,-300.0,9.019e-05,2]
[421187235,1777225832750,-300.0,9.02e-05,2]
[421187237,1777225832759,-250.0,9.02e-05,2]
[421187239,1777225832769,-250.0,9.02e-05,2]
[421187241,1777225832779,-420.0,9.921e-05,2]
[421187243,1777225832789,-339.0,0.0001,2]
[421187245,1777225832799,-339.0,0.0001,2]
[421187247,1777225832808,-339.70506683,0.0001,2]
[421187249,1777225832818,-587.0,0.00010913,2]
[421187251,1777225832827,-250.0,0.00010961,2]
[421187253,1777225832837,-150.0,0.00010999,2]
[421187255,1777225832849,-1000.0,0.00011,2]
[421187257,1777225832858,-1000.0,0.00011,2]
[421187259,1777225832867,-1000.0,0.00011,2]
[421187261,1777225832877,-1000.0,0.00011,2]
[421187263,1777225832886,-1000.0,0.00011,2]
[421187265,1777225832895,-1000.0,0.00011,2]
[421187267,1777225832905,-1000.0,0.00011,2]
[421187269,1777225832914,-1000.0,0.00011,2]
[421187271,1777225832923,-1000.0,0.00011,2]
[421187273,1777225832933,-1000.0,0.00011,2]
[421187275,1777225832942,-1000.0,0.00011,2]
[421187277,1777225832951,-1000.0,0.00011,2]
[421187279,1777225832960,-1000.0,0.00011,2]
[421187281,1777225832969,-1000.0,0.00011,2]
[421187283,1777225832978,-150.0,0.0001107,2]
[421187285,1777225832988,-150.0,0.00011096,2]
[421187286,1777225832997,-150.0,0.00011096,2]
[421187288,1777225833006,-150.0,0.00011096,2]
[421187290,1777225833015,-1970.60879053,0.00011343,2]
[421187292,1777225833025,-255.0,0.00012044,2]
[421187295,1777225833034,-352.16,0.00012087,2]
[421187296,1777225833044,-2121.05,0.00012087,2]
[421187298,1777225833054,-9999.99,0.00012087,2]
[421187300,1777225833063,-3114.98,0.00012087,2]
[421187302,1777225833073,-150.99,0.00012087,2]
[421187304,1777225833082,-1513.93,0.00012087,2]
[421187306,1777225833091,-299.99,0.00012087,2]
[421187308,1777225833100,-765.99,0.00012087,2]
[421187310,1777225833110,-1842.19630025,0.00012189,2]
[421187313,1777225833122,-157.80369975,0.00012189,2]
[421187315,1777225833131,-250.0,0.00013,2]
[421187317,1777225833139,-433.0,0.00013188,2]
[421187319,1777225833149,-427.3,0.0001345,2]
[421187321,1777225833158,-500.0,0.00013553,2]
[421187322,1777225833167,-160.0,0.00014287,2]
[421187324,1777225833176,-162.25551732,0.00014287,2]
[421187326,1777225833186,-736.0,0.00014442,2]
[421187328,1777225833195,-2000.0,0.00014991,2]
[421187330,1777225833204,-1503.8216089,0.00015,2]
[421187332,1777225833214,-160.0,0.00015,2]
[421187334,1777225833223,-300.0,0.00015,2]
[421187336,1777225833232,-1252.0,0.00015817,2]
[421187338,1777225833241,-200.0,0.00016106,2]
[421187340,1777225833250,-500.0,0.00016106,2]
[421187342,1777225833260,-151.0,0.00016106,2]
[421187344,1777225833269,-500.0,0.00016106,2]
[421187346,1777225833278,-151.0,0.00016106,2]
[421187348,1777225833288,-500.0,0.00016106,2]
[421187350,1777225833300,-151.0,0.00016106,2]
[421187352,1777225833309,-500.0,0.00016106,2]
[421187354,1777225833318,-151.0,0.00016106,2]
[421187356,1777225833327,-500.0,0.00016106,2]
[421187358,1777225833337,-151.0,0.00016106,2]
[421187360,1777225833346,-151.0,0.00016106,2]
[421187362,1777225833355,-500.0,0.00016106,2]
[421187363,1777225833364,-151.0,0.00016106,2]
[421187364,1777225833374,-234.64711685,0.00016106,2]
[421187365,1777225833385,-265.35288315,0.00016106,2]
[421187366,1777225833394,-151.0,0.00016106,2]
[421187367,1777225833404,-500.0,0.00016106,2]
[421187368,1777225833413,-151.0,0.00016106,2]
[421187369,1777225833423,-500.0,0.00016106,2]
[421187370,1777225833432,-500.0,0.00016106,2]
[421187371,1777225833441,-151.0,0.00016106,2]
[421187372,1777225833450,-500.0,0.00016106,2]
[421187373,1777225833460,-151.0,0.00016106,2]
[421187374,1777225833469,-500.0,0.00016106,2]
[421187375,1777225833479,-151.0,0.00016106,2]
[421187376,1777225833488,-500.0,0.00016106,2]
[421187377,1777225833498,-151.0,0.00016106,2]
[421187378,1777225833507,-151.0,0.00016106,2]
[421187379,1777225833516,-151.0,0.00016106,2]
[421187380,1777225833526,-151.0,0.00016106,2]
[421187381,1777225833535,-151.0,0.00016106,2]
[421187382,1777225833544,-151.0,0.00016106,2]
[421187383,1777225833553,-151.0,0.00016106,2]
[421187384,1777225833563,-151.0,0.00016106,2]
[421187385,1777225833572,-500.0,0.00016106,2]
[421187386,1777225833581,-151.0,0.00016106,2]
[421187387,1777225833591,-500.0,0.00016106,2]
[421187388,1777225833600,-500.0,0.00016106,2]
[421187389,1777225833609,-151.0,0.00016106,2]
[421187390,1777225833617,-500.0,0.00016106,2]
[421187391,1777225833627,-151.0,0.00016106,2]
[421187392,1777225833636,-500.0,0.00016106,2]
[421187393,1777225833645,-151.0,0.00016106,2]
[421187394,1777225833654,-500.0,0.00016106,2]
[421187395,1777225833663,-151.0,0.00016106,2]
[421187396,1777225833673,-500.0,0.00016106,2]
[421187397,1777225833682,-151.0,0.00016106,2]
[421187398,1777225833691,-500.0,0.00016106,2]
[421187399,1777225833700,-151.0,0.00016106,2]
[421187400,1777225833709,-151.0,0.00016106,2]
[421187401,1777225833718,-500.0,0.00016106,2]
[421187402,1777225833728,-151.0,0.00016106,2]
[421187403,1777225833737,-500.0,0.00016106,2]
[421187404,1777225833746,-151.0,0.00016106,2]
[421187405,1777225833755,-500.0,0.00016106,2]
[421187406,1777225833765,-151.0,0.00016106,2]
[421187407,1777225833774,-500.0,0.00016106,2]
[421187408,1777225833783,-151.0,0.00016106,2]
[421187409,1777225833792,-151.0,0.00016106,2]
[421187410,1777225833801,-1243.57659104,0.00016106,2]
[421187411,1777225833810,-5917.16,0.00016116,2]
[421187412,1777225833819,-1615.96,0.00016116,2]
[421187413,1777225833828,-3297.36,0.00016116,2]
[421187414,1777225833838,-47106.03,0.00016116,2]
[421187415,1777225833847,-1501.17,0.00016116,2]
[421187416,1777225833856,-150.0,0.00016137,2]
[421187417,1777225833865,-155.94716998,0.00016141,2]
[421187418,1777225833874,-4766.94244399,0.0001626,2]
[421187419,1777225833884,-4072.5,0.00016438,2]
[421187420,1777225833893,-200.0,0.00016654,2]
[421187421,1777225833902,-151.0,0.00016654,2]
[421187422,1777225833911,-1289.58892491,0.00016654,2]
[421187423,1777225833921,-350.0,0.00017,2]
[421187424,1777225833931,-200.0,0.00017202,2]
[421187425,1777225833941,-151.0,0.00017202,2]
[421187426,1777225833951,-1337.30371513,0.00017202,2]
[421187427,1777225833960,-155.94716998,0.00017278,2]
[421187428,1777225833970,-1198.0,0.00017312,2]
[421187429,1777225833979,-500.0,0.00017343,2]
[421187430,1777225833989,-501.86229103,0.00017343,2]
[421187431,1777225833999,-500.0,0.00017343,2]
[421187432,1777225834009,-500.0,0.00017343,2]
[421187433,1777225834019,-500.0,0.00017343,2]
[421187434,1777225834029,-500.0,0.00017436,2]
[421187435,1777225834039,-4114.20537295,0.00017491,2]
[421187436,1777225834048,-500.0,0.000175,2]
[421187437,1777225834057,-500.0,0.000175,2]
[421187438,1777225834067,-500.0,0.000175,2]
[421187439,1777225834076,-500.0,0.000175,2]
[421187440,1777225834085,-500.0,0.000175,2]
[421187441,1777225834095,-500.0,0.000175,2]
[421187442,1777225834104,-500.0,0.000175,2]
[421187443,1777225834113,-500.0,0.000175,2]
[421187444,1777225834123,-568.12791671,0.000175,2]
[421187445,1777225834132,-500.0,0.000175,2]
[421187446,1777225834141,-500.0,0.000175,2]
[421187447,1777225834152,-500.0,0.000175,2]
[421187448,1777225834161,-500.0,0.000175,2]
[421187449,1777225834170,-500.0,0.000175,2]
[421187450,1777225834179,-500.0,0.000175,2]
[421187451,1777225834188,-500.0,0.000175,2]
[421187452,1777225834198,-500.0,0.000175,2]
[421187453,1777225834209,-500.0,0.000175,2]
[421187454,1777225834218,-500.0,0.000175,2]
[421187455,1777225834230,-500.0,0.000175,2]
[421187456,1777225834240,-175.41688272,0.000175,2]
[421187457,1777225834249,-500.0,0.000175,2]
[421187458,1777225834258,-175.41688272,0.000175,2]
[421187459,1777225834268,-5000.0,0.00017576,2]
[421187460,1777225834277,-513.71,0.00017592,2]
[421187461,1777225834288,-2487.93964206,0.000176,2]
[421187462,1777225834297,-500.0,0.00017655,2]
[421187463,1777225834308,-175.41688272,0.00017655,2]